[Event "African Games-chT 2019"]
[Site "Casablanca"]
[Date "2019.08.25"]
[Round "7.10"]
[White "Mushore, Emarald Takudzwa"]
[Black "Silva, David"]
[Result "1-0"]
[ECO "C50"]
[WhiteElo "2198"]
[BlackElo "2239"]
[Annotator "ChessBase"]
[PlyCount "83"]
[EventDate "2019.08.24"]
[EventType "team-tourn"]
[EventCountry "MAR"]
[SourceTitle "playchess.com"]
[Source "ChessBase"]
[SourceQuality "1"]
[WhiteTeam "Zimbabwe"]
[BlackTeam "Angola"]
[WhiteTeamCountry "ZIM"]
[BlackTeamCountry "ANG"]
[TimeControl "900+10"]

1. e4 {[%emt 0:00:00]} e5 {[%emt 0:01:00]} 2. Nf3 {[%emt 0:00:00]} Nc6 {[%emt 0:00:02]} 3. Bc4 {[%emt 0:00:00]} Nf6 {[%emt 0:00:01]} 4. d3 {[%emt 0:00:04]} Bc5 {[%emt 0:00:03]} 5. c3 {[%emt 0:00:02]} d6 {[%emt 0:00:06]} 6. O-O {[%emt 0:00:04]} a6 {[%emt 0:00:02]} 7. a4 {[%emt 0:00:10]} Ba7 {[%emt 0:00:02]} 8. Na3 {[%emt 0:00:15]} h6 {[%emt 0:00:03]} 9. Nc2 {[%emt 0:00:11]} O-O {[%emt 0:00:03]} 10. Be3 {[%emt 0:00:02]} d5 {[%emt 0:00:02]} 11. exd5 {[%emt 0:00:07]} Nxd5 {[%emt 0:00:03]} 12. Bxa7 {[%emt 0:00:04]} Rxa7 {[%emt 0:00:02]} 13. Ne3 {[%emt 0:00:09]} Nf4 {[%emt 0:00:19]} 14. Re1 {[%emt 0:00:34]} Ra8 {[%emt 0:00:39]} 15. Qc2 {[%emt 0:00:30]} Qf6 {[%emt 0:04:16]} 16. Nd5 {[%emt 0:00:17]} Qg6 {[%emt 0:00:33]} 17. Nxf4 {[%emt 0:00:15]} exf4 {[%emt 0:00:02]} 18. Qd2 {[%emt 0:01:23]} Bh3 {[%emt 0:01:46]} 19. g3 {[%emt 0:00:02]} fxg3 {[%emt 0:00:04]} 20. hxg3 {[%emt 0:00:02]} Rad8 {[%emt 0:00:25]} 21. d4 {[%emt 0:00:03]} Qh5 {[%emt 0:00:12]} 22. Qf4 {[%emt 0:00:33]} Rd6 {[%emt 0:00:37]} 23. Qh4 {[%emt 0:01:17]} Qf5 {[%emt 0:02:12]} 24. Qe4 {[%emt 0:00:50]} Qh5 {[%emt 0:01:08]} 25. Nh4 {[%emt 0:02:37]} Bg4 {[%emt 0:01:14]} 26. Be2 {[%emt 0:01:49]} Bxe2 {[%emt 0:00:30]} 27. Qxe2 {[%emt 0:00:01]} Qg5 {[%emt 0:00:08]} 28. Qe3 {[%emt 0:00:06]} Qd5 {[%emt 0:00:09]} 29. Ng2 {[%emt 0:00:27]} Rf6 {[%emt 0:00:20]} 30. Nf4 {[%emt 0:00:07]} Qg5 {[%emt 0:00:01]} 31. Rad1 {[%emt 0:00:46]} Na5 {[%emt 0:01:33]} 32. Nd3 {[%emt 0:01:08]} Qg6 {[%emt 0:00:26]} 33. Qe4 {[%emt 0:00:49]} Qg5 {[%emt 0:01:55]} 34. Qe5 {[%emt 0:01:12]} Qxe5 {[%emt 0:00:02]} 35. Rxe5 {[%emt 0:00:03]} Nc6 {[%emt 0:00:01]} 36. Re3 {[%emt 0:00:26]} Rd8 {[%emt 0:00:03]} 37. Rde1 {[%emt 0:00:06]} Kf8 {[%emt 0:00:08]} 38. Nc5 {[%emt 0:00:02]} g5 {[%emt 0:00:30]} 39. Nxb7 {[%emt 0:00:07]} Rd5 {[%emt 0:00:11]} 40. Nc5 {[%emt 0:00:03]} Na5 {[%emt 0:00:06]} 41. Re5 {[%emt 0:00:26]} Rdd6 {[%emt 0:00:40]} 42. Ne4 {[%emt 0:00:04]} 1-0

[Event "African Games-chT 2019"]
[Site "Casablanca"]
[Date "2019.08.25"]
[Round "7.11"]
[White "Caxita, Esperanca"]
[Black "Shaba, Linda"]
[Result "1-0"]
[ECO "C02"]
[WhiteElo "1803"]
[BlackElo "1615"]
[Annotator "NA"]
[PlyCount "65"]
[EventDate "2019.08.24"]
[EventType "team-tourn"]
[EventCountry "MAR"]
[SourceTitle "playchess.com"]
[Source "ChessBase"]
[SourceQuality "1"]
[WhiteTeam "Angola"]
[BlackTeam "Zimbabwe"]
[WhiteTeamCountry "ANG"]
[BlackTeamCountry "ZIM"]
[TimeControl "900+10"]

1. e4 {[%emt 0:00:00]} e6 {[%emt 0:00:00]} 2. d4 {[%emt 0:00:00]} d5 {[%emt 0:00:00]} 3. e5 {[%emt 0:00:09]} c5 {[%emt 0:00:00]} 4. c3 {[%emt 0:00:02]} Nc6 {[%emt 0:00:01]} 5. Bb5 {[%emt 0:00:03]} Qb6 {[%emt 0:00:10]} 6. Bxc6+ {[%emt 0:00:09]} bxc6 {[%emt 0:00:02]} 7. Nf3 {[%emt 0:00:05]} Ba6 {[%emt 0:00:02]} 8. Qb3 {[%emt 0:00:32]} cxd4 {[%emt 0:00:23]} 9. Qxb6 {[%emt 0:01:48]} axb6 {[%emt 0:00:03]} 10. cxd4 {[%emt 0:00:08]} c5 {[%emt 0:00:28]} 11. Be3 {[%emt 0:00:16]} Rc8 {[%emt 0:01:40]} 12. Nc3 {[%emt 0:00:22]} cxd4 {[%emt 0:01:11]} 13. Nxd4 {[%emt 0:00:30]} Bb4 {[%emt 0:01:48]} 14. Rc1 {[%emt 0:01:02]} Ne7 {[%emt 0:00:36]} 15. a3 {[%emt 0:02:31]} Bxc3+ {[%emt 0:04:26]} 16. Rxc3 {[%emt 0:00:02]} Rxc3 {[%emt 0:01:36]} 17. bxc3 {[%emt 0:00:01]} Bc4 {[%emt 0:01:26]} 18. Kd2 {[%emt 0:00:13]} Kd7 {[%emt 0:00:04]} 19. Rb1 {[%emt 0:00:32]} Ra8 {[%emt 0:02:43]} 20. Rxb6 {[%emt 0:02:45]} Kc7 {[%emt 0:00:23]} 21. Rb4 {[%emt 0:00:27]} Rxa3 {[%emt 0:00:06]} 22. Rxc4+ {[%emt 0:00:05]} dxc4 {[%emt 0:00:07]} 23. Nb5+ {[%emt 0:00:01]} Kc6 {[%emt 0:00:01]} 24. Nxa3 {[%emt 0:00:01]} Kd5 {[%emt 0:00:02]} 25. f4 {[%emt 0:01:02]} f6 {[%emt 0:00:15]} 26. Bd4 {[%emt 0:00:44]} f5 {[%emt 0:00:07]} 27. Nb5 {[%emt 0:00:08]} Kc6 {[%emt 0:00:11]} 28. Nd6 {[%emt 0:00:33]} h5 {[%emt 0:00:18]} 29. Nxc4 {[%emt 0:00:07]} Kd5 {[%emt 0:00:31]} 30. Nd6 {[%emt 0:00:17]} Nc6 {[%emt 0:00:14]} 31. Kd3 {[%emt 0:00:22]} Na5 {[%emt 0:00:15]} 32. Ne8 {[%emt 0:00:35]} Nc4 {[%emt 0:00:36]} 33. Nc7+ {[%emt 0:00:38]} 1-0

[Event "African Games-chT 2019"]
[Site "Casablanca"]
[Date "2019.08.25"]
[Round "7.12"]
[White "Wakuruwarewa, Colletta"]
[Black "Pires, Luzia"]
[Result "1-0"]
[ECO "B50"]
[WhiteElo "1587"]
[BlackElo "1924"]
[Annotator "NA"]
[PlyCount "127"]
[EventDate "2019.08.24"]
[EventType "team-tourn"]
[EventCountry "MAR"]
[SourceTitle "playchess.com"]
[Source "ChessBase"]
[SourceQuality "1"]
[WhiteTeam "Zimbabwe"]
[BlackTeam "Angola"]
[WhiteTeamCountry "ZIM"]
[BlackTeamCountry "ANG"]
[TimeControl "900+10"]

1. e4 {[%emt 0:00:00]} c5 {[%emt 0:00:00]} 2. Nf3 {[%emt 0:00:00]} d6 {[%emt 0:00:00]} 3. c3 {[%emt 0:00:00]} Nf6 {[%emt 0:00:00]} 4. d3 {[%emt 0:00:04]} g6 {[%emt 0:00:00]} 5. h3 {[%emt 0:00:10]} Bg7 {[%emt 0:00:01]} 6. Be3 {[%emt 0:00:02]} O-O {[%emt 0:00:04]} 7. Be2 {[%emt 0:00:02]} Nc6 {[%emt 0:00:05]} 8. O-O {[%emt 0:00:04]} Bd7 {[%emt 0:00:30]} 9. Nbd2 {[%emt 0:00:06]} Rc8 {[%emt 0:00:09]} 10. Rc1 {[%emt 0:00:02]} Qa5 {[%emt 0:00:37]} 11. Nc4 {[%emt 0:00:54]} Qd8 {[%emt 0:00:26]} 12. Re1 {[%emt 0:01:43]} a6 {[%emt 0:00:11]} 13. Ncd2 {[%emt 0:00:29]} Qc7 {[%emt 0:01:30]} 14. Nf1 {[%emt 0:00:20]} Nh5 {[%emt 0:01:05]} 15. N3d2 {[%emt 0:00:25]} Nf6 {[%emt 0:00:12]} 16. Ng3 {[%emt 0:00:02]} Rfe8 {[%emt 0:00:37]} 17. Nf3 {[%emt 0:00:03]} Qd8 {[%emt 0:00:30]} 18. Qd2 {[%emt 0:00:04]} b5 {[%emt 0:00:39]} 19. Bh6 {[%emt 0:00:15]} Qa5 {[%emt 0:00:16]} 20. a3 {[%emt 0:00:35]} Qb6 {[%emt 0:00:28]} 21. Qg5 {[%emt 0:02:25]} Qd8 {[%emt 0:01:30]} 22. Nf5 {[%emt 0:03:55]} Bxh6 {[%emt 0:02:03]} 23. Nxh6+ {[%emt 0:00:18]} Kg7 {[%emt 0:00:09]} 24. Nf5+ {[%emt 0:01:11]} Kh8 {[%emt 0:01:20]} 25. Nh6 {[%emt 0:01:28]} Rf8 {[%emt 0:00:59]} 26. Qh4 {[%emt 0:00:48]} Kg7 {[%emt 0:00:27]} 27. Ng5 {[%emt 0:00:37]} e5 {[%emt 0:01:44]} 28. Bd1 {[%emt 0:00:52]} Be6 {[%emt 0:00:54]} 29. Re3 {[%emt 0:01:52]} Rc7 {[%emt 0:01:10]} 30. Rg3 {[%emt 0:00:23]} Rh8 {[%emt 0:00:11]} 31. Kh2 {[%emt 0:00:36]} Qe7 {[%emt 0:00:20]} 32. Kh1 {[%emt 0:00:01]} Qd8 33. Kg1 Ng8 {[%emt 0:00:25]} 34. Nxe6+ {[%emt 0:00:16]} fxe6 {[%emt 0:00:09]} 35. Qxd8 {[%emt 0:00:03]} Nxd8 {[%emt 0:00:03]} 36. Ng4 {[%emt 0:00:00]} Nc6 {[%emt 0:00:14]} 37. Rf3 {[%emt 0:00:03]} h5 {[%emt 0:00:10]} 38. Ne3 {[%emt 0:00:05]} Nf6 {[%emt 0:00:04]} 39. Bb3 {[%emt 0:00:05]} Re8 {[%emt 0:00:08]} 40. Re1 {[%emt 0:00:04]} Na5 {[%emt 0:00:10]} 41. Ba2 {[%emt 0:00:06]} Rd7 {[%emt 0:00:18]} 42. Kh2 {[%emt 0:00:09]} Nh7 {[%emt 0:00:11]} 43. h4 {[%emt 0:00:09]} Nf6 {[%emt 0:00:04]} 44. Kg1 {[%emt 0:00:16]} Nc6 {[%emt 0:00:14]} 45. Bb3 {[%emt 0:00:05]} d5 {[%emt 0:00:02]} 46. exd5 {[%emt 0:00:06]} exd5 {[%emt 0:00:02]} 47. Rg3 {[%emt 0:00:14]} Kh7 {[%emt 0:00:21]} 48. Rg5 {[%emt 0:00:08]} d4 {[%emt 0:00:12]} 49. cxd4 {[%emt 0:00:38]} Rxd4 {[%emt 0:00:40]} 50. Bf7 {[%emt 0:00:10]} Red8 {[%emt 0:00:26]} 51. Bxg6+ {[%emt 0:00:02]} Kh8 {[%emt 0:00:10]} 52. Be4 {[%emt 0:00:29]} Nxe4 {[%emt 0:00:21]} 53. dxe4 {[%emt 0:00:07]} Rxe4 {[%emt 0:00:05]} 54. Rxh5+ {[%emt 0:00:02]} Kg8 {[%emt 0:00:01]} 55. Rg5+ Kh8 {[%emt 0:00:08]} 56. Rh5+ {[%emt 0:00:13]} Kg8 {[%emt 0:00:03]} 57. Rg5+ {[%emt 0:00:03]} Kf7 {[%emt 0:00:05]} 58. f3 {[%emt 0:00:21]} Rxh4 {[%emt 0:00:07]} 59. Ng4 {[%emt 0:00:05]} Re8 {[%emt 0:00:16]} 60. Kf2 {[%emt 0:00:39]} Rhh8 {[%emt 0:00:41]} 61. Nxe5+ {[%emt 0:00:07]} Kf6 {[%emt 0:00:17]} 62. Rg6+ {[%emt 0:00:04]} Kf5 {[%emt 0:00:21]} 63. g4+ {[%emt 0:00:07]} Kf4 {[%emt 0:00:18]} 64. Re4# {[%emt 0:00:01]} 1-0

[Event "African Games-chT 2019"]
[Site "Casablanca"]
[Date "2019.08.25"]
[Round "7.13"]
[White "Mesfin, Leykun"]
[Black "Zaibi, Amir"]
[Result "1/2-1/2"]
[ECO "B44"]
[WhiteElo "2151"]
[BlackElo "2367"]
[Annotator "ChessBase"]
[PlyCount "166"]
[EventDate "2019.08.24"]
[EventType "team-tourn"]
[EventCountry "MAR"]
[SourceTitle "playchess.com"]
[Source "ChessBase"]
[SourceQuality "1"]
[WhiteTeam "Ethiopia"]
[BlackTeam "Tunisia"]
[WhiteTeamCountry "ETH"]
[BlackTeamCountry "TUN"]
[TimeControl "900+10"]

1. e4 {[%emt 0:00:00]} c5 {[%emt 0:00:00]} 2. Nf3 {[%emt 0:00:01]} e6 {[%emt 0:00:00]} 3. d4 {[%emt 0:00:03]} cxd4 {[%emt 0:00:00]} 4. Nxd4 {[%emt 0:00:02]} Nc6 {[%emt 0:00:00]} 5. Nxc6 {[%emt 0:00:02]} bxc6 {[%emt 0:00:00]} 6. Bd3 {[%emt 0:00:02]} Nf6 {[%emt 0:00:03]} 7. O-O {[%emt 0:00:02]} e5 {[%emt 0:00:01]} 8. c4 {[%emt 0:00:35]} Bc5 {[%emt 0:00:06]} 9. Nc3 {[%emt 0:00:09]} O-O {[%emt 0:00:09]} 10. Bg5 {[%emt 0:00:37]} h6 {[%emt 0:00:02]} 11. Bh4 {[%emt 0:00:31]} d6 {[%emt 0:00:04]} 12. h3 {[%emt 0:01:11]} Be6 {[%emt 0:00:36]} 13. Kh1 {[%emt 0:00:38]} g5 {[%emt 0:00:06]} 14. Bg3 {[%emt 0:00:04]} Kg7 {[%emt 0:00:08]} 15. Qe2 {[%emt 0:00:10]} Qe7 {[%emt 0:00:30]} 16. Nd1 {[%emt 0:00:04]} Rab8 {[%emt 0:00:45]} 17. Rb1 {[%emt 0:00:02]} Bd4 {[%emt 0:00:21]} 18. b3 {[%emt 0:00:03]} a5 {[%emt 0:00:27]} 19. Ne3 {[%emt 0:00:05]} Qa7 {[%emt 0:00:33]} 20. Nf5+ {[%emt 0:00:48]} Bxf5 {[%emt 0:00:02]} 21. exf5 {[%emt 0:00:01]} a4 {[%emt 0:00:11]} 22. b4 {[%emt 0:00:12]} a3 {[%emt 0:00:19]} 23. Qf3 {[%emt 0:03:44]} Qa4 {[%emt 0:00:50]} 24. b5 {[%emt 0:00:45]} cxb5 {[%emt 0:00:03]} 25. cxb5 {[%emt 0:00:02]} Rfe8 {[%emt 0:00:15]} 26. Qc6 {[%emt 0:00:33]} Rb6 {[%emt 0:00:44]} 27. Qc7 {[%emt 0:01:01]} Qa8 {[%emt 0:06:03]} 28. Rbc1 {[%emt 0:01:29]} Qb8 {[%emt 0:00:21]} 29. Rc6 {[%emt 0:01:28]} Rxc6 {[%emt 0:01:25]} 30. Qxc6 {[%emt 0:00:39]} Rc8 {[%emt 0:00:10]} 31. Qa6 {[%emt 0:00:04]} Rc3 {[%emt 0:00:11]} 32. Rd1 {[%emt 0:00:47]} Nd7 {[%emt 0:00:01]} 33. Bf1 {[%emt 0:01:07]} Nc5 {[%emt 0:00:27]} 34. Qc6 {[%emt 0:00:50]} Na4 {[%emt 0:01:45]} 35. Qd5 {[%emt 0:00:41]} Rc5 {[%emt 0:00:52]} 36. Qb3 {[%emt 0:00:18]} Nc3 {[%emt 0:00:15]} 37. Rc1 {[%emt 0:00:27]} Ne4 {[%emt 0:00:24]} 38. Rxc5 {[%emt 0:00:06]} Bxc5 {[%emt 0:00:06]} 39. f6+ {[%emt 0:00:32]} Nxf6 {[%emt 0:00:12]} 40. f3 {[%emt 0:00:03]} Nh5 {[%emt 0:00:48]} 41. Be1 {[%emt 0:00:03]} Nf4 {[%emt 0:00:00]} 42. Bc4 {[%emt 0:00:09]} Qa7 {[%emt 0:00:33]} 43. Qd1 {[%emt 0:00:45]} Bd4 {[%emt 0:00:34]} 44. Bb4 {[%emt 0:00:13]} d5 {[%emt 0:00:03]} 45. Bf1 {[%emt 0:00:03]} Bc5 {[%emt 0:00:18]} 46. Be1 {[%emt 0:00:18]} Qb7 {[%emt 0:00:29]} 47. g3 {[%emt 0:00:05]} Ne6 {[%emt 0:00:02]} 48. Qd3 {[%emt 0:00:21]} e4 {[%emt 0:00:06]} 49. fxe4 {[%emt 0:00:09]} dxe4 {[%emt 0:00:01]} 50. Qc4 {[%emt 0:00:17]} Bd4 {[%emt 0:00:29]} 51. Bg2 {[%emt 0:00:13]} Qa8 {[%emt 0:00:44]} 52. Qc6 {[%emt 0:00:08]} Qxc6 {[%emt 0:00:17]} 53. bxc6 {[%emt 0:00:01]} f5 {[%emt 0:00:02]} 54. Bb4 {[%emt 0:00:08]} Be5 {[%emt 0:00:11]} 55. g4 {[%emt 0:00:11]} Kf6 {[%emt 0:00:00]} 56. gxf5 {[%emt 0:00:02]} Kxf5 {[%emt 0:00:01]} 57. Bxa3 {[%emt 0:00:03]} Nd8 {[%emt 0:00:05]} 58. Bc5 {[%emt 0:00:49]} Nxc6 {[%emt 0:00:02]} 59. a4 {[%emt 0:00:12]} Bc7 {[%emt 0:00:10]} 60. Bf1 {[%emt 0:00:03]} Ba5 {[%emt 0:00:09]} 61. Kg2 {[%emt 0:00:07]} Ne5 {[%emt 0:00:09]} 62. Ba6 {[%emt 0:00:06]} Nd3 {[%emt 0:00:19]} 63. Bd4 {[%emt 0:00:10]} Nf4+ {[%emt 0:00:04]} 64. Kg3 {[%emt 0:00:09]} h5 {[%emt 0:00:21]} 65. Bc8+ {[%emt 0:00:02]} Kg6 {[%emt 0:00:02]} 66. Be3 {[%emt 0:00:10]} Nd5 {[%emt 0:00:18]} 67. Bd4 {[%emt 0:00:05]} h4+ {[%emt 0:00:20]} 68. Kf2 {[%emt 0:00:06]} Bd2 {[%emt 0:00:15]} 69. Bg4 {[%emt 0:00:53]} Nf6 {[%emt 0:00:34]} 70. Be6 {[%emt 0:00:14]} Nh5 {[%emt 0:00:16]} 71. Bd7 {[%emt 0:00:26]} Nf4 {[%emt 0:00:06]} 72. Bb6 {[%emt 0:00:05]} Nd5 {[%emt 0:00:10]} 73. a5 {[%emt 0:00:07]} Nxb6 {[%emt 0:00:07]} 74. axb6 {[%emt 0:00:02]} Bf4 {[%emt 0:00:03]} 75. b7 {[%emt 0:00:02]} Kf6 {[%emt 0:00:03]} 76. Bc6 {[%emt 0:00:03]} Bb8 {[%emt 0:00:07]} 77. Bxe4 {[%emt 0:00:02]} Ke5 {[%emt 0:00:01]} 78. Kf3 {[%emt 0:00:01]} Kf6 {[%emt 0:00:03]} 79. Bc6 {[%emt 0:00:03]} Bc7 {[%emt 0:00:01]} 80. Ke4 {[%emt 0:00:02]} Bb8 {[%emt 0:00:01]} 81. Kd5 {[%emt 0:00:02]} g4 {[%emt 0:00:19]} 82. hxg4 {[%emt 0:00:05]} Kg5 {[%emt 0:00:01]} 83. Ke6 {[%emt 0:00:05]} Kxg4 {[%emt 0:00:02]} 1/2-1/2

[Event "African Games-chT 2019"]
[Site "Casablanca"]
[Date "2019.08.25"]
[Round "7.14"]
[White "Boudriga, Mohamed Ali"]
[Black "Gole, Habtamu Ashenafi"]
[Result "1-0"]
[ECO "A45"]
[WhiteElo "2325"]
[BlackElo "2046"]
[Annotator "ChessBase"]
[PlyCount "125"]
[EventDate "2019.08.24"]
[EventType "team-tourn"]
[EventCountry "MAR"]
[SourceTitle "playchess.com"]
[Source "ChessBase"]
[SourceQuality "1"]
[WhiteTeam "Tunisia"]
[BlackTeam "Ethiopia"]
[WhiteTeamCountry "TUN"]
[BlackTeamCountry "ETH"]
[TimeControl "900+10"]

1. d4 {[%emt 0:00:03]} Nf6 {[%emt 0:00:00]} 2. Bf4 {[%emt 0:00:03]} d5 {[%emt 0:00:00]} 3. e3 {[%emt 0:00:01]} e6 {[%emt 0:00:03]} 4. Nd2 {[%emt 0:00:03]} Be7 {[%emt 0:00:05]} 5. Bd3 {[%emt 0:00:07]} Nbd7 {[%emt 0:00:12]} 6. h3 {[%emt 0:00:30]} c5 {[%emt 0:00:09]} 7. c3 {[%emt 0:00:02]} a6 {[%emt 0:00:04]} 8. Ngf3 {[%emt 0:00:01]} O-O {[%emt 0:00:08]} 9. O-O {[%emt 0:00:06]} b5 {[%emt 0:00:13]} 10. Ne5 {[%emt 0:00:04]} Bb7 {[%emt 0:00:04]} 11. Qf3 {[%emt 0:01:13]} Rc8 {[%emt 0:01:08]} 12. a3 {[%emt 0:01:18]} cxd4 {[%emt 0:00:42]} 13. exd4 {[%emt 0:00:06]} Nxe5 {[%emt 0:01:49]} 14. Bxe5 {[%emt 0:00:22]} Nd7 {[%emt 0:00:35]} 15. Bf4 {[%emt 0:00:04]} Re8 {[%emt 0:00:54]} 16. Rfe1 {[%emt 0:00:33]} Bf6 {[%emt 0:00:43]} 17. Qg3 {[%emt 0:00:26]} Nf8 {[%emt 0:00:33]} 18. Nf3 {[%emt 0:00:12]} Ng6 {[%emt 0:00:05]} 19. Bg5 {[%emt 0:00:09]} Rf8 {[%emt 0:01:43]} 20. h4 {[%emt 0:00:08]} Bxg5 {[%emt 0:00:06]} 21. Nxg5 {[%emt 0:00:02]} Re8 {[%emt 0:00:41]} 22. Nxh7 {[%emt 0:01:58]} Qxh4 {[%emt 0:00:23]} 23. Bxg6 {[%emt 0:00:36]} Qxg3 {[%emt 0:00:02]} 24. fxg3 {[%emt 0:00:01]} fxg6 {[%emt 0:00:06]} 25. Ng5 {[%emt 0:00:02]} Rc6 {[%emt 0:00:44]} 26. Nf3 {[%emt 0:00:04]} Rc7 {[%emt 0:00:38]} 27. Ne5 {[%emt 0:00:03]} g5 {[%emt 0:00:47]} 28. Nd3 {[%emt 0:00:54]} Rf7 {[%emt 0:00:16]} 29. g4 {[%emt 0:00:15]} Bc8 {[%emt 0:00:11]} 30. Re5 {[%emt 0:00:01]} a5 {[%emt 0:01:11]} 31. Rae1 {[%emt 0:00:51]} Kh7 {[%emt 0:00:34]} 32. Rxg5 {[%emt 0:00:06]} Ref8 {[%emt 0:00:33]} 33. Rge5 {[%emt 0:00:10]} g6 {[%emt 0:00:31]} 34. R5e2 {[%emt 0:00:35]} Kg7 {[%emt 0:00:27]} 35. Nc5 {[%emt 0:00:37]} Re7 {[%emt 0:00:34]} 36. Re5 {[%emt 0:00:49]} Rfe8 {[%emt 0:00:54]} 37. g5 {[%emt 0:00:13]} Kf7 {[%emt 0:00:56]} 38. Rf1+ {[%emt 0:00:10]} Kg7 {[%emt 0:00:01]} 39. Rf6 {[%emt 0:00:03]} Rf8 {[%emt 0:00:39]} 40. Rxf8 {[%emt 0:02:04]} Kxf8 {[%emt 0:00:02]} 41. Re3 {[%emt 0:00:07]} Kg7 {[%emt 0:00:06]} 42. Kh2 {[%emt 0:00:12]} Re8 {[%emt 0:00:18]} 43. Nd3 {[%emt 0:00:06]} Re7 {[%emt 0:00:10]} 44. Ne5 {[%emt 0:00:03]} Re8 {[%emt 0:00:40]} 45. Rf3 {[%emt 0:00:07]} Rh8+ {[%emt 0:00:02]} 46. Kg1 {[%emt 0:00:09]} Rf8 {[%emt 0:00:32]} 47. Rxf8 {[%emt 0:00:21]} Kxf8 {[%emt 0:00:01]} 48. Nxg6+ {[%emt 0:00:01]} Kg7 {[%emt 0:00:04]} 49. Ne5 {[%emt 0:00:02]} Ba6 {[%emt 0:00:11]} 50. Kf2 {[%emt 0:00:02]} Bc8 {[%emt 0:00:02]} 51. Ke3 {[%emt 0:00:01]} a4 {[%emt 0:00:06]} 52. Kf4 {[%emt 0:00:02]} Kg8 {[%emt 0:00:18]} 53. g6 {[%emt 0:00:23]} Kg7 {[%emt 0:00:04]} 54. Kg5 {[%emt 0:00:01]} Bb7 {[%emt 0:00:09]} 55. Nd7 {[%emt 0:00:08]} Bc6 {[%emt 0:00:05]} 56. Nf6 {[%emt 0:00:28]} Bb7 {[%emt 0:00:20]} 57. Nh5+ {[%emt 0:00:02]} Kg8 {[%emt 0:00:01]} 58. Kf6 {[%emt 0:00:01]} Bc8 {[%emt 0:00:03]} 59. Nf4 {[%emt 0:00:03]} Bd7 {[%emt 0:00:06]} 60. g7 {[%emt 0:00:04]} Be8 {[%emt 0:00:28]} 61. Nxe6 {[%emt 0:00:04]} Bf7 {[%emt 0:00:03]} 62. Nf4 {[%emt 0:00:04]} Be8 {[%emt 0:00:08]} 63. Nxd5 {[%emt 0:00:03]} 1-0

[Event "African Games-chT 2019"]
[Site "Casablanca"]
[Date "2019.08.25"]
[Round "7.15"]
[White "Haile, Lidet Abate"]
[Black "Marzouk, Amira"]
[Result "1-0"]
[ECO "B72"]
[WhiteElo "1593"]
[BlackElo "1698"]
[Annotator "NA"]
[PlyCount "145"]
[EventDate "2019.08.24"]
[EventType "team-tourn"]
[EventCountry "MAR"]
[SourceTitle "playchess.com"]
[Source "ChessBase"]
[SourceQuality "1"]
[WhiteTeam "Ethiopia"]
[BlackTeam "Tunisia"]
[WhiteTeamCountry "ETH"]
[BlackTeamCountry "TUN"]
[TimeControl "900+10"]

1. e4 {[%emt 0:00:00]} c5 {[%emt 0:00:00]} 2. Nf3 {[%emt 0:00:00]} d6 {[%emt 0:00:00]} 3. d4 {[%emt 0:00:00]} cxd4 {[%emt 0:00:00]} 4. Nxd4 {[%emt 0:00:00]} Nf6 {[%emt 0:00:00]} 5. Nc3 {[%emt 0:00:00]} g6 {[%emt 0:00:00]} 6. Be3 {[%emt 0:00:04]} a6 {[%emt 0:00:03]} 7. f3 {[%emt 0:00:05]} Nbd7 {[%emt 0:00:02]} 8. Bc4 {[%emt 0:00:05]} b5 {[%emt 0:00:13]} 9. Bb3 {[%emt 0:00:11]} Bb7 {[%emt 0:00:02]} 10. Qd2 {[%emt 0:00:28]} Rc8 {[%emt 0:00:17]} 11. O-O {[%emt 0:00:35]} Nb6 {[%emt 0:00:07]} 12. Bh6 {[%emt 0:00:54]} Nc4 {[%emt 0:00:40]} 13. Bxc4 {[%emt 0:01:34]} Rxc4 {[%emt 0:00:03]} 14. Bxf8 {[%emt 0:00:13]} Kxf8 {[%emt 0:00:13]} 15. Kh1 {[%emt 0:01:37]} Kg7 {[%emt 0:00:20]} 16. Rfd1 {[%emt 0:00:34]} Qb6 {[%emt 0:01:44]} 17. Nde2 {[%emt 0:00:46]} b4 {[%emt 0:00:33]} 18. Nb1 {[%emt 0:01:44]} Rhc8 {[%emt 0:00:18]} 19. c3 {[%emt 0:00:13]} a5 {[%emt 0:01:12]} 20. a3 {[%emt 0:01:26]} Bxe4 {[%emt 0:03:11]} 21. b3 {[%emt 0:02:46]} R4c7 {[%emt 0:00:26]} 22. fxe4 {[%emt 0:00:08]} Nxe4 {[%emt 0:00:02]} 23. Qd4+ {[%emt 0:00:02]} Qxd4 {[%emt 0:00:28]} 24. Rxd4 {[%emt 0:00:05]} Nxc3 {[%emt 0:00:32]} 25. Nbxc3 {[%emt 0:00:07]} bxc3 {[%emt 0:00:15]} 26. Rc1 {[%emt 0:00:18]} c2 {[%emt 0:00:19]} 27. Rd2 {[%emt 0:02:03]} Rb8 {[%emt 0:00:41]} 28. Rd3 {[%emt 0:00:51]} Rc5 {[%emt 0:02:10]} 29. Nd4 {[%emt 0:01:45]} Rbc8 {[%emt 0:00:34]} 30. a4 {[%emt 0:00:10]} e5 {[%emt 0:00:59]} 31. Nb5 {[%emt 0:00:14]} d5 {[%emt 0:00:01]} 32. Kg1 {[%emt 0:00:12]} Rd8 {[%emt 0:00:44]} 33. Kf2 {[%emt 0:00:10]} f5 {[%emt 0:00:19]} 34. Ke2 {[%emt 0:00:06]} Kf6 {[%emt 0:02:22]} 35. Kd2 {[%emt 0:00:02]} Rdc8 {[%emt 0:00:01]} 36. Rc3 {[%emt 0:00:28]} Rxc3 {[%emt 0:00:19]} 37. Nxc3 {[%emt 0:00:02]} d4 {[%emt 0:00:09]} 38. Ne2 {[%emt 0:00:16]} Rb8 {[%emt 0:00:46]} 39. Kxc2 {[%emt 0:00:14]} Rb4 {[%emt 0:00:04]} 40. Rb1 {[%emt 0:00:16]} e4 {[%emt 0:00:03]} 41. Kd2 {[%emt 0:00:09]} Ke5 {[%emt 0:00:04]} 42. Nc1 {[%emt 0:00:37]} f4 {[%emt 0:00:28]} 43. Rb2 {[%emt 0:00:11]} Rb8 {[%emt 0:00:35]} 44. Rc2 {[%emt 0:00:01]} Kd6 {[%emt 0:00:22]} 45. Rc4 {[%emt 0:00:02]} Kd5 {[%emt 0:00:01]} 46. Rc2 {[%emt 0:00:02]} Kd6 {[%emt 0:00:26]} 47. Rc4 {[%emt 0:00:14]} Kd5 {[%emt 0:00:06]} 48. Kc2 {[%emt 0:00:44]} Rb7 {[%emt 0:00:11]} 49. Kd2 {[%emt 0:00:08]} Rf7 {[%emt 0:00:09]} 50. Ne2 {[%emt 0:00:04]} d3 {[%emt 0:00:10]} 51. Nc3+ {[%emt 0:00:06]} Ke5 {[%emt 0:00:03]} 52. Rxe4+ {[%emt 0:00:01]} Kd6 {[%emt 0:00:13]} 53. Kxd3 {[%emt 0:00:02]} f3 {[%emt 0:00:04]} 54. Nb5+ {[%emt 0:00:06]} Kc6 {[%emt 0:00:06]} 55. Re6+ {[%emt 0:00:12]} Kc5 {[%emt 0:00:12]} 56. Re5+ {[%emt 0:00:14]} Kb4 {[%emt 0:00:23]} 57. gxf3 {[%emt 0:00:26]} Rxf3+ {[%emt 0:00:03]} 58. Re3 {[%emt 0:00:01]} Rf2 {[%emt 0:00:33]} 59. Re2 {[%emt 0:00:02]} Rf3+ {[%emt 0:00:02]} 60. Kc2 {[%emt 0:00:20]} Rh3 {[%emt 0:00:12]} 61. Re4+ {[%emt 0:00:05]} Kc5 {[%emt 0:00:01]} 62. Re2 {[%emt 0:00:07]} h5 {[%emt 0:00:20]} 63. Kb2 {[%emt 0:00:02]} Kd5 {[%emt 0:00:10]} 64. Rg2 h4 {[%emt 0:00:16]} 65. Ka3 {[%emt 0:00:29]} Ke4 {[%emt 0:00:11]} 66. Nd6+ {[%emt 0:00:09]} Kf3 {[%emt 0:00:02]} 67. Rxg6 {[%emt 0:00:08]} Rxh2 {[%emt 0:00:02]} 68. Nf5 {[%emt 0:00:02]} h3 {[%emt 0:00:09]} 69. Nd4+ {[%emt 0:00:13]} Kf2 {[%emt 0:00:07]} 70. Rf6+ {[%emt 0:00:08]} Kg1 {[%emt 0:00:02]} 71. Nf3+ {[%emt 0:00:03]} Kh1 {[%emt 0:00:03]} 72. Nxh2 {[%emt 0:00:02]} Kxh2 {[%emt 0:00:02]} 73. Rf5 {[%emt 0:00:04]} 1-0